[Event "Rapid Tournament (RAP)"]
[Site "Biel, Switzerland"]
[Date "2026.07.12"]
[Round "3.25"]
[White "Habibi, Ali"]
[Black "Gireada, Lucas"]
[Result "1-0"]
[TimeControl "15 + 5"]
[WhiteTitle "-"]
[BlackTitle "-"]
[WhiteFideId "4604393"]
[BlackFideId "1373544"]
[WhiteElo "2187"]
[BlackElo "1837"]

1. Nf3 {[%clk 00:15:09]} Nf6 {[%clk 00:15:09]} {[%emt 00:00:02]} 2. g3 {[%clk
00:15:13]} g6 {[%clk 00:15:12]} {[%emt 00:00:05]} 3. Bg2 {[%clk 00:15:07]}
{[%emt 00:00:09]} Bg7 {[%clk 00:15:16]} 4. O-O {[%clk 00:15:10]} {[%emt
00:00:01]} O-O {[%clk 00:15:18]} {[%emt 00:00:04]} 5. d3 {[%clk 00:15:14]} d5
{[%clk 00:15:22]} {[%emt 00:00:01]} 6. c3 {[%clk 00:15:17]} {[%emt 00:00:02]}
c5 {[%clk 00:15:26]} {[%emt 00:00:04]} 7. Qa4 {[%clk 00:15:21]} Nc6 {[%clk
00:14:47]} {[%emt 00:00:43]} 8. Qh4 {[%clk 00:15:23]} {[%emt 00:00:02]} Qd7
{[%clk 00:13:53]} {[%emt 00:01:00]} 9. h3 {[%clk 00:15:23]} {[%emt 00:00:05]}
e5 {[%clk 00:12:18]} {[%emt 00:01:40]} 10. Bh6 {[%clk 00:15:25]} {[%emt
00:00:02]} Qe7 {[%clk 00:11:12]} {[%emt 00:01:12]} 11. Ng5 {[%clk 00:15:19]}
{[%emt 00:00:10]} Rd8 {[%clk 00:10:22]} {[%emt 00:00:56]} 12. Nd2 {[%clk
00:15:16]} {[%emt 00:00:07]} Nh5 {[%clk 00:09:52]} {[%emt 00:00:36]} 13. Bxg7
{[%clk 00:15:18]} {[%emt 00:00:02]} Kxg7 {[%clk 00:09:48]} {[%emt 00:00:09]} 14.
Rad1 {[%clk 00:15:03]} {[%emt 00:00:20]} h6 {[%clk 00:09:37]} {[%emt 00:00:17]}
15. Ngf3 {[%clk 00:15:06]} {[%emt 00:00:02]} Qxh4 {[%clk 00:09:37]} {[%emt
00:00:05]} 16. Nxh4 {[%clk 00:15:09]} {[%emt 00:00:01]} Be6 {[%clk 00:09:34]}
{[%emt 00:00:09]} 17. b3 {[%clk 00:15:10]} {[%emt 00:00:03]} f5 {[%clk
00:09:08]} {[%emt 00:00:32]} 18. e3 {[%clk 00:15:00]} {[%emt 00:00:13]} Nf6
{[%clk 00:09:10]} {[%emt 00:00:04]} 19. Nhf3 {[%clk 00:14:52]} {[%emt
00:00:14]} Re8 {[%clk 00:09:05]} {[%emt 00:00:10]} 20. Ne1 {[%clk 00:14:25]}
{[%emt 00:00:31]} Rad8 {[%clk 00:09:07]} {[%emt 00:00:03]} 21. Kh2 {[%clk
00:14:24]} {[%emt 00:00:06]} a6 {[%clk 00:08:49]} {[%emt 00:00:24]} 22. Nc2
{[%clk 00:14:13]} {[%emt 00:00:15]} d4 {[%clk 00:07:31]} {[%emt 00:01:24]} 23.
exd4 {[%clk 00:14:09]} {[%emt 00:00:08]} cxd4 {[%clk 00:07:22]} {[%emt
00:00:15]} 24. c4 {[%clk 00:14:13]} Bf7 {[%clk 00:06:07]} {[%emt 00:01:20]} 25.
Rfe1 {[%clk 00:14:15]} {[%emt 00:00:02]} Re6 {[%clk 00:05:57]} {[%emt
00:00:16]} 26. f3 {[%clk 00:14:04]} {[%emt 00:00:16]} Rde8 {[%clk 00:05:55]}
{[%emt 00:00:07]} 27. g4 {[%clk 00:13:54]} {[%emt 00:00:15]} R6e7 {[%clk
00:05:42]} {[%emt 00:00:18]} 28. a3 {[%clk 00:13:44]} {[%emt 00:00:14]} g5
{[%clk 00:04:07]} {[%emt 00:01:41]} 29. gxf5 {[%clk 00:13:42]} {[%emt
00:00:07]} Nh5 {[%clk 00:04:08]} {[%emt 00:00:04]} 30. Ne4 {[%clk 00:13:42]}
{[%emt 00:00:04]} Rd8 {[%clk 00:03:44]} {[%emt 00:00:30]} 31. b4 {[%clk
00:13:27]} {[%emt 00:00:20]} Nf6 {[%clk 00:03:41]} {[%emt 00:00:08]} 32. a4
{[%clk 00:13:21]} {[%emt 00:00:10]} Nxe4 {[%clk 00:03:15]} {[%emt 00:00:32]} 33.
fxe4 {[%clk 00:13:24]} {[%emt 00:00:02]} Kf6 {[%clk 00:03:17]} {[%emt
00:00:03]} 34. b5 {[%clk 00:13:23]} {[%emt 00:00:06]} Na5 {[%clk 00:03:07]}
{[%emt 00:00:14]} 35. Rb1 {[%clk 00:13:23]} {[%emt 00:00:04]} Rd6 {[%clk
00:02:41]} {[%emt 00:00:32]} 36. c5 {[%clk 00:13:15]} {[%emt 00:00:13]} Rd8
{[%clk 00:02:14]} {[%emt 00:00:32]} 37. bxa6 {[%clk 00:13:16]} {[%emt
00:00:05]} Bb3 {[%clk 00:02:13]} {[%emt 00:00:06]} 38. Nb4 {[%clk 00:12:58]}
{[%emt 00:00:21]} bxa6 {[%clk 00:02:09]} {[%emt 00:00:10]} 39. Nxa6 {[%clk
00:12:42]} {[%emt 00:00:22]} Ra7 {[%clk 00:01:58]} {[%emt 00:00:16]} 40. Nb4
{[%clk 00:12:44]} {[%emt 00:00:02]} Bxa4 {[%clk 00:01:25]} {[%emt 00:00:39]} 41.
Nd5+ {[%clk 00:12:47]} {[%emt 00:00:02]} Kf7 {[%clk 00:01:24]} {[%emt
00:00:06]} 42. Rb6 {[%clk 00:12:48]} {[%emt 00:00:03]} Bc2 {[%clk 00:01:16]}
{[%emt 00:00:13]} 43. Rxh6 {[%clk 00:12:42]} {[%emt 00:00:12]} Rb7 {[%clk
00:01:01]} {[%emt 00:00:20]} 44. Ra1 {[%clk 00:12:40]} {[%emt 00:00:06]} Nb3
{[%clk 00:01:01]} {[%emt 00:00:06]} 45. Ra2 {[%clk 00:12:33]} {[%emt 00:00:11]}
Bb1 {[%clk 00:00:57]} {[%emt 00:00:10]} 46. Raa6 {[%clk 00:11:56]} {[%emt
00:00:42]} Bxd3 {[%clk 00:00:54]} {[%emt 00:00:08]} 47. Raf6+ {[%clk 00:11:48]}
{[%emt 00:00:12]} Kg8 {[%clk 00:00:51]} {[%emt 00:00:09]} 48. Rfg6+ {[%clk
00:11:50]} {[%emt 00:00:02]} Kf8 {[%emt 00:00:19]} 1-0

[Event "Rapid Tournament (RAP)"]
[Site "Biel, Switzerland"]
[Date "2026.07.12"]
[Round "3.26"]
[White "Gluckman, David"]
[Black "Rohde, Bernhard"]
[Result "1-0"]
[TimeControl "15 + 5"]
[WhiteTitle "-"]
[BlackTitle "-"]
[WhiteFideId "14300010"]
[BlackFideId "1323016"]
[WhiteElo "2161"]
[BlackElo "1834"]

1. e4 {[%clk 00:15:09]} e6 {[%clk 00:15:09]} {[%emt 00:00:01]} 2. d4 {[%clk
00:15:10]} {[%emt 00:00:06]} d5 {[%clk 00:15:13]} 3. Nc3 {[%clk 00:15:14]} dxe4
{[%clk 00:14:20]} {[%emt 00:00:58]} 4. Nxe4 {[%clk 00:15:17]} {[%emt 00:00:02]}
Nc6 {[%clk 00:14:18]} {[%emt 00:00:08]} 5. Nf3 {[%clk 00:15:16]} {[%emt
00:00:05]} h6 {[%clk 00:14:05]} {[%emt 00:00:18]} 6. Bd3 {[%clk 00:14:58]}
{[%emt 00:00:23]} Bb4+ {[%clk 00:12:53]} {[%emt 00:01:17]} 7. c3 {[%clk
00:15:00]} {[%emt 00:00:03]} Ba5 {[%clk 00:12:56]} {[%emt 00:00:02]} 8. O-O
{[%clk 00:14:59]} {[%emt 00:00:06]} Nf6 {[%clk 00:12:54]} {[%emt 00:00:07]} 9.
Re1 {[%clk 00:14:34]} {[%emt 00:00:31]} Nd5 {[%clk 00:12:18]} {[%emt 00:00:40]}
10. a3 {[%clk 00:14:15]} {[%emt 00:00:24]} a6 {[%clk 00:11:45]} {[%emt
00:00:39]} 11. b4 {[%clk 00:10:44]} {[%emt 00:03:36]} Bb6 {[%clk 00:11:48]}
{[%emt 00:00:01]} 12. c4 {[%clk 00:10:47]} {[%emt 00:00:02]} Nf6 {[%clk
00:11:50]} {[%emt 00:00:03]} 13. d5 {[%clk 00:09:35]} {[%emt 00:01:18]} Nd4
{[%clk 00:10:23]} {[%emt 00:01:32]} 14. c5 {[%clk 00:09:26]} {[%emt 00:00:13]}
Nxf3+ {[%clk 00:10:26]} {[%emt 00:00:03]} 15. Qxf3 {[%clk 00:09:29]} {[%emt
00:00:01]} Ba7 {[%clk 00:09:48]} {[%emt 00:00:43]} 16. dxe6 {[%clk 00:09:01]}
{[%emt 00:00:34]} Bxe6 {[%clk 00:09:49]} {[%emt 00:00:03]} 17. Bb2 {[%clk
00:09:05]} Nxe4 {[%clk 00:08:06]} {[%emt 00:01:49]} 18. Bxe4 {[%clk 00:09:08]}
{[%emt 00:00:02]} c6 {[%clk 00:07:59]} {[%emt 00:00:11]} 19. Bxg7 {[%clk
00:08:05]} {[%emt 00:01:08]} Rg8 {[%clk 00:08:03]} {[%emt 00:00:01]} 20. Bf6
{[%clk 00:07:50]} {[%emt 00:00:20]} Qc7 {[%clk 00:07:49]} {[%emt 00:00:19]} 21.
Bh7 {[%clk 00:07:28]} {[%emt 00:00:27]} Bb8 {[%clk 00:06:48]} {[%emt 00:01:06]}
22. Be5 {[%clk 00:07:25]} {[%emt 00:00:08]} Qxe5 {[%clk 00:05:27]} {[%emt
00:01:26]} 23. Rxe5 {[%clk 00:07:29]} Bxe5 {[%clk 00:05:31]} {[%emt 00:00:01]}
24. Re1 {[%clk 00:07:31]} {[%emt 00:00:03]} Rg5 {[%clk 00:05:13]} {[%emt
00:00:23]} 25. h4 {[%clk 00:07:22]} {[%emt 00:00:13]} Rg7 {[%clk 00:04:59]}
{[%emt 00:00:20]} 26. Bf5 {[%clk 00:07:16]} {[%emt 00:00:11]} Bxf5 {[%clk
00:04:39]} {[%emt 00:00:25]} 27. Qxf5 {[%clk 00:07:17]} {[%emt 00:00:04]} f6
{[%clk 00:04:42]} {[%emt 00:00:03]} 28. Qxf6 {[%clk 00:07:14]} {[%emt
00:00:07]} 1-0

[Event "Rapid Tournament (RAP)"]
[Site "Biel, Switzerland"]
[Date "2026.07.12"]
[Round "3.27"]
[White "Di Meo, Quentin"]
[Black "Hornung, Hans"]
[Result "0-1"]
[TimeControl "15 + 5"]
[WhiteTitle "-"]
[BlackTitle "-"]
[WhiteFideId "1338498"]
[BlackFideId "4615140"]
[WhiteElo "1828"]
[BlackElo "2040"]

1. c4 {[%clk 00:15:07]} {[%emt 00:00:02]} Nf6 {[%clk 00:15:08]} {[%emt
00:00:03]} 2. Nc3 {[%clk 00:15:09]} {[%emt 00:00:01]} c5 {[%clk 00:15:12]}
{[%emt 00:00:02]} 3. g3 {[%clk 00:15:08]} {[%emt 00:00:06]} e6 {[%clk
00:15:15]} {[%emt 00:00:02]} 4. Bg2 {[%clk 00:15:08]} {[%emt 00:00:05]} d5
{[%clk 00:15:17]} {[%emt 00:00:03]} 5. cxd5 {[%clk 00:15:06]} {[%emt 00:00:07]}
exd5 {[%clk 00:15:20]} {[%emt 00:00:02]} 6. d3 {[%clk 00:14:54]} {[%emt
00:00:17]} Nc6 {[%clk 00:15:06]} {[%emt 00:00:19]} 7. Nf3 {[%clk 00:14:38]}
{[%emt 00:00:21]} d4 {[%clk 00:15:01]} {[%emt 00:00:10]} 8. Nb1 {[%clk
00:14:26]} {[%emt 00:00:18]} Be7 {[%clk 00:15:01]} {[%emt 00:00:04]} 9. O-O
{[%clk 00:14:11]} {[%emt 00:00:19]} O-O {[%clk 00:15:03]} {[%emt 00:00:04]} 10.
Nbd2 {[%clk 00:13:42]} {[%emt 00:00:34]} Re8 {[%clk 00:14:46]} {[%emt
00:00:21]} 11. Ng5 {[%clk 00:13:04]} {[%emt 00:00:43]} Bf8 {[%clk 00:13:26]}
{[%emt 00:01:25]} 12. Nde4 {[%clk 00:11:40]} {[%emt 00:01:29]} Nd5 {[%clk
00:11:53]} {[%emt 00:01:38]} 13. Nh3 {[%clk 00:09:21]} {[%emt 00:02:25]} h6
{[%clk 00:11:32]} {[%emt 00:00:26]} 14. Nf4 {[%clk 00:08:46]} {[%emt 00:00:40]}
Nb6 {[%clk 00:09:51]} {[%emt 00:01:46]} 15. a4 {[%clk 00:07:43]} {[%emt
00:01:08]} a5 {[%clk 00:09:44]} {[%emt 00:00:12]} 16. Nd2 {[%clk 00:06:37]}
{[%emt 00:01:11]} g5 {[%clk 00:09:08]} {[%emt 00:00:41]} 17. Nh5 {[%clk
00:05:58]} {[%emt 00:00:43]} Be6 {[%clk 00:06:47]} {[%emt 00:02:26]} 18. Ne4
{[%clk 00:05:14]} {[%emt 00:00:50]} Be7 {[%clk 00:06:48]} {[%emt 00:00:04]} 19.
h3 {[%clk 00:04:27]} {[%emt 00:00:51]} f5 {[%clk 00:06:11]} {[%emt 00:00:43]}
20. Nd2 {[%clk 00:04:23]} {[%emt 00:00:08]} Bf7 {[%clk 00:05:36]} {[%emt
00:00:38]} 21. g4 {[%clk 00:03:55]} {[%emt 00:00:35]} Qd7 {[%clk 00:05:18]}
{[%emt 00:00:22]} 22. f3 {[%clk 00:02:49]} {[%emt 00:01:12]} Nd5 {[%clk
00:04:48]} {[%emt 00:00:35]} 23. Nc4 {[%clk 00:02:35]} {[%emt 00:00:19]} f4
{[%clk 00:04:35]} {[%emt 00:00:17]} 24. Bd2 {[%clk 00:02:12]} {[%emt 00:00:29]}
Ra6 {[%clk 00:04:28]} {[%emt 00:00:13]} 25. Ra3 {[%clk 00:01:42]} {[%emt
00:00:35]} Kh8 {[%clk 00:03:25]} {[%emt 00:01:07]} 26. Qe1 {[%clk 00:01:27]}
{[%emt 00:00:19]} Bd8 {[%clk 00:03:11]} {[%emt 00:00:20]} 27. Qd1 {[%clk
00:01:12]} {[%emt 00:00:20]} Bc7 {[%clk 00:02:21]} {[%emt 00:00:55]} 28. Rb3
{[%clk 00:01:01]} {[%emt 00:00:16]} Ncb4 {[%clk 00:02:20]} {[%emt 00:00:07]} 29.
Re1 {[%clk 00:00:26]} {[%emt 00:00:39]} Rae6 {[%clk 00:02:05]} {[%emt
00:00:18]} 30. Bc1 {[%clk 00:00:11]} {[%emt 00:00:22]} b6 {[%clk 00:02:05]}
{[%emt 00:00:06]} 31. Bd2 {[%clk 00:00:09]} {[%emt 00:00:07]} Ne3 {[%clk
00:01:41]} {[%emt 00:00:28]} 32. Nxe3 {[%clk 00:00:09]} {[%emt 00:00:05]} fxe3
{[%clk 00:01:42]} {[%emt 00:00:04]} 33. Bxb4 {[%clk 00:00:10]} {[%emt
00:00:04]} axb4 {[%clk 00:01:39]} {[%emt 00:00:07]} 34. Rf1 {[%clk 00:00:07]}
{[%emt 00:00:08]} Bxh5 {[%clk 00:01:13]} {[%emt 00:00:32]} 35. gxh5 {[%clk
00:00:11]} {[%emt 00:00:01]} Qd6 {[%clk 00:01:17]} 36. f4 {[%clk 00:00:08]}
{[%emt 00:00:08]} gxf4 {[%clk 00:01:11]} {[%emt 00:00:11]} 37. Bf3 {[%clk
00:00:07]} {[%emt 00:00:06]} R6e7 {[%clk 00:00:59]} {[%emt 00:00:16]} 38. Kh2
{[%clk 00:00:08]} {[%emt 00:00:05]} Rg7 {[%clk 00:00:59]} {[%emt 00:00:05]} 39.
Rg1 {[%clk 00:00:10]} {[%emt 00:00:03]} Reg8 {[%clk 00:00:42]} {[%emt
00:00:21]} 40. Rg4 {[%clk 00:00:11]} {[%emt 00:00:05]} Rxg4 {[%clk 00:00:39]}
{[%emt 00:00:07]} 41. hxg4 {[%clk 00:00:14]} {[%emt 00:00:02]} Rg7 {[%clk
00:00:42]} {[%emt 00:00:03]} 42. Qa1 {[%clk 00:00:13]} {[%emt 00:00:06]} Qf6
{[%clk 00:00:44]} {[%emt 00:00:04]} 43. Kh3 {[%clk 00:00:10]} {[%emt 00:00:07]}
Bd8 {[%clk 00:00:47]} {[%emt 00:00:02]} 44. Qh1 {[%clk 00:00:10]} {[%emt
00:00:04]} Qh4+ {[%clk 00:00:49]} {[%emt 00:00:04]} 45. Kg2 {[%clk 00:00:14]}
{[%emt 00:00:01]} Qg3+ {[%clk 00:00:53]} 46. Kf1 {[%clk 00:00:13]} {[%emt
00:00:06]} Qf2# {[%clk 00:00:43]} {[%emt 00:00:01]} 0-1

[Event "Rapid Tournament (RAP)"]
[Site "Biel, Switzerland"]
[Date "2026.07.12"]
[Round "3.28"]
[White "Labrovic, Jakov"]
[Black "Gaier, Walter"]
[Result "1-0"]
[TimeControl "15 + 5"]
[WhiteTitle "-"]
[BlackTitle "-"]
[WhiteFideId "14549786"]
[BlackFideId "1310186"]
[WhiteElo "2005"]
[BlackElo "1832"]

1. e4 {[%clk 00:15:08]} {[%emt 00:00:01]} c5 {[%clk 00:15:09]} {[%emt
00:00:04]} 2. Nf3 {[%clk 00:15:07]} {[%emt 00:00:04]} d6 {[%clk 00:15:13]}
{[%emt 00:00:03]} 3. c3 {[%clk 00:15:09]} Nf6 {[%clk 00:14:35]} {[%emt
00:00:42]} 4. h3 {[%clk 00:15:09]} {[%emt 00:00:04]} Bd7 {[%clk 00:14:24]}
{[%emt 00:00:18]} 5. Bd3 {[%clk 00:15:11]} {[%emt 00:00:03]} Bc6 {[%clk
00:12:51]} {[%emt 00:01:38]} 6. Qe2 {[%clk 00:15:06]} {[%emt 00:00:10]} Nbd7
{[%clk 00:12:00]} {[%emt 00:00:56]} 7. Bc2 {[%clk 00:14:51]} {[%emt 00:00:19]}
Ne5 {[%clk 00:11:16]} {[%emt 00:00:49]} 8. d4 {[%clk 00:14:41]} {[%emt
00:00:15]} Nxf3+ {[%clk 00:10:27]} {[%emt 00:00:55]} 9. Qxf3 {[%clk 00:14:40]}
{[%emt 00:00:06]} cxd4 {[%clk 00:10:11]} {[%emt 00:00:21]} 10. cxd4 {[%clk
00:14:42]} {[%emt 00:00:03]} Qc7 {[%clk 00:10:08]} {[%emt 00:00:08]} 11. Nc3
{[%clk 00:14:42]} {[%emt 00:00:05]} g6 {[%clk 00:07:53]} {[%emt 00:02:20]} 12.
O-O {[%clk 00:13:45]} {[%emt 00:01:02]} Bg7 {[%clk 00:07:53]} {[%emt 00:00:05]}
13. Be3 {[%clk 00:13:11]} {[%emt 00:00:38]} O-O {[%clk 00:07:40]} {[%emt
00:00:19]} 14. Rac1 {[%clk 00:13:02]} {[%emt 00:00:14]} b6 {[%clk 00:05:54]}
{[%emt 00:01:51]} 15. Bb3 {[%clk 00:12:43]} {[%emt 00:00:23]} Qd7 {[%clk
00:05:25]} {[%emt 00:00:35]} 16. d5 {[%clk 00:11:15]} {[%emt 00:01:33]} Bb7
{[%clk 00:03:56]} {[%emt 00:01:34]} 17. Ba4 {[%clk 00:11:10]} {[%emt 00:00:09]}
Qd8 {[%clk 00:03:38]} {[%emt 00:00:23]} 18. Bc6 {[%clk 00:10:37]} {[%emt
00:00:38]} Rb8 {[%clk 00:02:47]} {[%emt 00:00:57]} 19. b4 {[%clk 00:10:29]}
{[%emt 00:00:13]} Bxc6 {[%clk 00:02:11]} {[%emt 00:00:40]} 20. dxc6 {[%clk
00:10:31]} {[%emt 00:00:03]} a6 {[%clk 00:01:30]} {[%emt 00:00:47]} 21. b5
{[%clk 00:09:49]} {[%emt 00:00:47]} Qc7 {[%clk 00:01:17]} {[%emt 00:00:18]} 22.
a4 {[%clk 00:09:45]} {[%emt 00:00:09]} e6 {[%clk 00:01:13]} {[%emt 00:00:09]}
23. Rfd1 {[%clk 00:08:32]} {[%emt 00:01:17]} d5 {[%clk 00:00:34]} {[%emt
00:00:45]} 24. exd5 {[%clk 00:07:55]} {[%emt 00:00:42]} Nxd5 {[%clk 00:00:37]}
{[%emt 00:00:02]} 25. Nxd5 {[%clk 00:07:50]} {[%emt 00:00:09]} exd5 {[%clk
00:00:40]} {[%emt 00:00:02]} 26. Rxd5 {[%clk 00:07:43]} {[%emt 00:00:13]} Rfd8
{[%clk 00:00:34]} {[%emt 00:00:11]} 27. Bf4 {[%clk 00:07:31]} {[%emt 00:00:16]}
1-0

[Event "Rapid Tournament (RAP)"]
[Site "Biel, Switzerland"]
[Date "2026.07.12"]
[Round "3.29"]
[White "Yang, Sung-Jui"]
[Black "Arntz, Christoph"]
[Result "0-1"]
[TimeControl "15 + 5"]
[WhiteTitle "-"]
[BlackTitle "-"]
[WhiteFideId "16301048"]
[BlackFideId "16257723"]
[WhiteElo "1825"]
[BlackElo "1999"]

1. d4 {[%clk 00:15:00]} Nf6 {[%clk 00:15:09]} {[%emt 00:00:08]} 2. Nf3 {[%clk
00:15:04]} {[%emt 00:00:02]} e6 {[%clk 00:15:08]} {[%emt 00:00:06]} 3. c4
{[%clk 00:15:08]} {[%emt 00:00:01]} d5 {[%clk 00:15:08]} {[%emt 00:00:05]} 4.
Nc3 {[%clk 00:15:11]} {[%emt 00:00:01]} c6 {[%clk 00:15:01]} {[%emt 00:00:12]}
5. Bg5 {[%clk 00:15:15]} {[%emt 00:00:01]} Nbd7 {[%clk 00:15:03]} {[%emt
00:00:03]} 6. e3 {[%clk 00:15:19]} {[%emt 00:00:01]} Qa5 {[%clk 00:15:06]}
{[%emt 00:00:02]} 7. cxd5 {[%clk 00:15:21]} {[%emt 00:00:03]} Nxd5 {[%clk
00:14:31]} {[%emt 00:00:41]} 8. Qd2 {[%clk 00:15:24]} {[%emt 00:00:01]} Bb4
{[%clk 00:14:15]} {[%emt 00:00:20]} 9. Rc1 {[%clk 00:15:19]} {[%emt 00:00:11]}
O-O {[%clk 00:13:31]} {[%emt 00:00:48]} 10. Bd3 {[%clk 00:15:18]} {[%emt
00:00:06]} c5 {[%clk 00:11:40]} {[%emt 00:01:57]} 11. a3 {[%clk 00:14:47]}
{[%emt 00:00:36]} Bxc3 {[%clk 00:11:06]} {[%emt 00:00:39]} 12. bxc3 {[%clk
00:14:50]} {[%emt 00:00:02]} f6 {[%clk 00:10:26]} {[%emt 00:00:45]} 13. Bh4
{[%clk 00:14:42]} {[%emt 00:00:13]} Qxa3 {[%clk 00:09:58]} {[%emt 00:00:33]} 14.
O-O {[%clk 00:14:20]} {[%emt 00:00:27]} cxd4 {[%clk 00:08:50]} {[%emt
00:01:13]} 15. cxd4 {[%clk 00:13:53]} {[%emt 00:00:31]} Qe7 {[%clk 00:07:48]}
{[%emt 00:01:08]} 16. e4 {[%clk 00:13:43]} {[%emt 00:00:15]} Nb4 {[%clk
00:07:26]} {[%emt 00:00:27]} 17. Bc4 {[%clk 00:13:30]} {[%emt 00:00:18]} Nb6
{[%clk 00:07:07]} {[%emt 00:00:24]} 18. Bb3 {[%clk 00:13:33]} {[%emt 00:00:02]}
Kh8 {[%clk 00:07:10]} {[%emt 00:00:02]} 19. Rc5 {[%clk 00:11:59]} {[%emt
00:01:39]} Na6 {[%clk 00:06:33]} {[%emt 00:00:41]} 20. Rc3 {[%clk 00:08:59]}
{[%emt 00:03:06]} Qe8 {[%clk 00:05:50]} {[%emt 00:00:49]} 21. Bg3 {[%clk
00:07:51]} {[%emt 00:01:13]} Qd8 {[%clk 00:05:17]} {[%emt 00:00:37]} 22. Rfc1
{[%clk 00:06:57]} {[%emt 00:00:59]} Bd7 {[%clk 00:04:58]} {[%emt 00:00:24]} 23.
d5 {[%clk 00:05:43]} {[%emt 00:01:17]} e5 {[%clk 00:04:37]} {[%emt 00:00:29]}
24. Ne1 {[%clk 00:05:47]} {[%emt 00:00:01]} Rc8 {[%clk 00:04:13]} {[%emt
00:00:28]} 25. Nd3 {[%clk 00:05:44]} {[%emt 00:00:08]} Bb5 {[%clk 00:03:55]}
{[%emt 00:00:23]} 26. Rxc8 {[%clk 00:05:02]} {[%emt 00:00:47]} Nxc8 {[%clk
00:03:59]} 27. Nc5 {[%clk 00:05:02]} {[%emt 00:00:05]} Nxc5 {[%clk 00:04:02]}
{[%emt 00:00:02]} 28. Rxc5 {[%clk 00:05:06]} Qb6 {[%clk 00:03:55]} {[%emt
00:00:13]} 29. Qb4 {[%clk 00:04:59]} {[%emt 00:00:12]} Nd6 {[%clk 00:03:47]}
{[%emt 00:00:13]} 30. Rc1 {[%clk 00:00:27]} {[%emt 00:04:36]} Rd8 {[%clk
00:03:27]} {[%emt 00:00:25]} 31. h3 {[%clk 00:00:31]} {[%emt 00:00:01]} h6
{[%clk 00:03:29]} {[%emt 00:00:03]} 32. Rb1 {[%clk 00:00:30]} {[%emt 00:00:06]}
Qc7 {[%clk 00:03:09]} {[%emt 00:00:26]} 33. f4 {[%clk 00:00:21]} {[%emt
00:00:13]} a5 {[%clk 00:03:13]} 34. Qe1 {[%clk 00:00:21]} {[%emt 00:00:05]}
exf4 {[%clk 00:03:06]} {[%emt 00:00:12]} 35. Bxf4 {[%clk 00:00:25]} Qb6+ {[%clk
00:03:10]} 36. Be3 {[%clk 00:00:16]} {[%emt 00:00:14]} Qa6 {[%clk 00:03:15]} 37.
Bd4 {[%clk 00:00:13]} {[%emt 00:00:07]} Bd3 {[%clk 00:03:13]} {[%emt 00:00:06]}
38. Rc1 {[%clk 00:00:09]} {[%emt 00:00:09]} Bxe4 {[%clk 00:03:16]} {[%emt
00:00:03]} 39. Bc5 {[%clk 00:00:07]} {[%emt 00:00:07]} f5 {[%clk 00:03:02]}
{[%emt 00:00:19]} 40. g4 {[%clk 00:00:10]} {[%emt 00:00:02]} Qd3 {[%clk
00:03:02]} {[%emt 00:00:05]} 41. Bxd6 {[%clk 00:00:06]} {[%emt 00:00:09]} Rxd6
{[%clk 00:02:57]} {[%emt 00:00:10]} 42. Bc2 {[%clk 00:00:07]} {[%emt 00:00:03]}
Qd4+ {[%clk 00:03:01]} {[%emt 00:00:02]} 43. Kh2 {[%clk 00:00:11]} {[%emt
00:00:02]} Qxd5 {[%clk 00:03:02]} {[%emt 00:00:03]} 44. Bxe4 {[%clk 00:00:13]}
{[%emt 00:00:03]} fxe4 {[%clk 00:03:06]} {[%emt 00:00:01]} 45. Rc8+ {[%clk
00:00:13]} {[%emt 00:00:06]} Kh7 {[%clk 00:03:10]} {[%emt 00:00:01]} 46. Qf1
{[%clk 00:00:06]} {[%emt 00:00:11]} Qe5+ {[%clk 00:03:06]} {[%emt 00:00:09]} 47.
Kh1 {[%clk 00:00:07]} {[%emt 00:00:04]} e3 {[%clk 00:03:07]} {[%emt 00:00:04]}
48. Rc2 {[%clk 00:00:06]} {[%emt 00:00:06]} Qe4+ {[%clk 00:03:10]} {[%emt
00:00:02]} 0-1